bitfinex-derivatives/quotes_SOLF0:USTF0_20241105
["timestamp","ask_amount","ask_price","bid_price","bid_amount"]
[1730816689229,2.1226,164.95,164.9,2.1231]
[1730816689628,24.53129648,164.97,164.84,19.98609648]
[1730816689830,2.6333,164.96,164.84,19.98609648]
[1730816690034,2.6333,164.96,164.87,18.65129648]
[1730816690325,2.6333,164.96,164.9,2.1232]
[1730816690528,2.6333,164.96,164.87,18.65129648]
[1730816691129,2.1228,164.93,164.84,19.98609648]
[1730816691329,2.6333,164.96,164.84,19.98609648]
[1730816691929,2.1228,164.94,164.89,2.1232]
[1730816692230,2.6333,164.96,164.84,19.98609648]
[1730816692231,5.88,164.96,164.84,19.98609648]
[1730816692425,8.0025,164.96,164.87,2.1235]
[1730816692629,5.88,164.96,164.84,19.98609648]
[1730816693137,8.0025,164.96,164.91,2.1229]
[1730816694132,5.88,164.96,164.92,2.1228]
[1730816694340,5.88,164.96,164.88,1.3469]
[1730816694935,5.88,164.96,164.92,2.1228]
[1730816695128,5.88,164.96,164.88,1.3469]
[1730816695932,5.88,164.96,164.93,2.1228]
[1730816696430,5.88,164.96,164.92,2.1229]
[1730816696635,7.7023,164.97,164.88,1.3469]
[1730816696833,5.58,164.97,164.88,1.3469]
[1730816697136,2.1226,164.95,164.9,2.1231]
[1730816697327,5.58,164.97,164.9,2.1231]
[1730816697534,5.58,164.97,164.9,2.1232]
[1730816698033,5.58,164.97,164.88,1.3469]
[1730816698230,5.58,164.97,164.91,2.1229]
[1730816698730,2.1226,164.95,164.91,2.123]
[1730816698931,2.1226,164.95,164.88,1.3469]
[1730816699328,2.1226,164.95,164.9,2.1231]
[1730816699532,2.1226,164.95,164.88,1.3469]
[1730816699730,5.58,164.97,164.88,1.3469]
[1730816699934,2.1228,164.94,164.89,2.1232]
[1730816700332,2.1231,164.91,164.86,2.1236]
[1730816700627,5.58,164.92,164.85,18.65129648]
[1730816700826,5.58,164.93,164.85,18.65129648]
[1730816702838,2.123,164.92,164.87,2.1235]
[1730816703135,2.123,164.92,164.84,1.3348]
[1730816703136,5.58,164.93,164.84,1.3348]
[1730816703535,2.1233,164.9,164.84,1.3348]
[1730816704236,2.1233,164.9,164.86,2.1237]
[1730816704638,5.58,164.93,164.84,1.3348]
[1730816704835,2.1233,164.89,164.84,2.1239]
[1730816705141,5.58,164.93,164.77,18.65129648]
[1730816705142,18.65129648,164.92,164.77,18.65129648]
[1730816705337,5.58,164.93,164.86,2.1236]
[1730816705539,5.58,164.93,164.8,18.65129648]
[1730816705741,18.65129648,164.92,164.77,18.65129648]
[1730816706234,18.65129648,164.92,164.8,18.65129648]
[1730816706840,2.1237,164.87,164.82,2.1242]
[1730816707042,7.7037,164.87,164.82,2.1242]
[1730816707240,5.58,164.87,164.8,18.65129648]
[1730816707439,2.1239,164.85,164.8,20.77569648]
[1730816708240,5.58,164.87,164.8,18.65129648]
[1730816708745,5.58,164.87,164.77,18.65129648]
[1730816708947,2.1239,164.85,164.8,2.1244]
[1730816709337,5.58,164.87,164.79,11.65431897]
[1730816709539,5.58,164.87,164.76,2.5476]
[1730816709842,5.58,164.87,164.79,11.65431897]
[1730816710144,2.1237,164.86,164.79,11.65431897]
[1730816710937,2.1242,164.83,164.79,11.65431897]
[1730816711144,5.58,164.87,164.79,11.65431897]
[1730816711339,1.3753,164.88,164.82,11.65431897]
[1730816711538,5.58,164.88,164.84,11.65431897]
[1730816712751,5.58,164.88,164.82,11.65431897]
[1730816712950,2.1238,164.85,164.82,11.65431897]
[1730816713137,5.58,164.88,164.82,11.65431897]
[1730816713650,2.1237,164.86,164.82,11.65431897]
[1730816714342,5.58,164.88,164.85,2.1238]
[1730816714548,5.58,164.88,164.82,11.65431897]
[1730816716249,7.7035,164.88,164.84,2.1239]
[1730816716445,7.7035,164.88,164.82,11.65431897]
[1730816716841,2.1237,164.87,164.82,11.65431897]
[1730816717049,5.58,164.88,164.79,11.65431897]
[1730816717449,5.58,164.88,164.81,2.1243]
[1730816717645,2.1238,164.86,164.81,2.1243]
[1730816717853,5.58,164.88,164.79,11.65431897]
[1730816718050,5.58,164.88,164.8,2.1244]
[1730816718352,11.65431897,164.85,164.72,0.34613]
[1730816718556,7.8505,164.84,164.74,11.65431897]
[1730816718755,11.65431897,164.83,164.74,11.65431897]
[1730816719051,11.65431897,164.83,164.72,13.26294897]
[1730816719255,2.1247,164.79,164.73,2.1253]
[1730816719454,5.28,164.78,164.73,2.1253]
[1730816719646,5.28,164.78,164.74,2.1252]
[1730816719850,5.28,164.78,164.72,13.26294897]
[1730816720053,7.4048,164.78,164.72,13.26294897]
[1730816720249,11.65431897,164.77,164.72,0.34613]
[1730816720558,2.1254,164.74,164.72,0.34613]
[1730816720756,12.91811897,164.77,164.72,0.34613]
[1730816720946,1.3916,164.76,164.68,11.65431897]
[1730816721252,1.3916,164.76,164.71,2.1256]
[1730816721552,1.3916,164.76,164.68,11.65431897]
[1730816721749,3.5167,164.76,164.68,11.65431897]
[1730816721947,1.2638,164.77,164.68,11.65431897]
[1730816722743,1.2638,164.77,164.66,11.65431897]
[1730816722744,11.65431897,164.76,164.66,11.65431897]
[1730816723153,11.65431897,164.74,164.64,1.3464]
[1730816723353,2.5425,164.77,164.61,11.65431897]
[1730816723354,11.65431897,164.72,164.61,11.65431897]
[1730816723554,5.28,164.71,164.61,11.65431897]
[1730816723861,5.28,164.71,164.66,2.1263]
[1730816724155,5.28,164.71,164.63,11.65431897]
[1730816724647,7.4057,164.71,164.65,2.1264]
[1730816724848,5.28,164.71,164.63,11.65431897]
[1730816725145,2.1259,164.69,164.63,2.1266]
[1730816725462,5.28,164.68,164.63,2.1266]
[1730816725853,5.28,164.68,164.61,11.65431897]
[1730816726453,5.28,164.68,164.63,2.1267]
[1730816726854,5.28,164.68,164.6,2.5924]
[1730816727149,11.65431897,164.67,164.57,11.65431897]
[1730816727350,13.01661897,164.67,164.57,11.65431897]
[1730816727549,13.01661897,164.67,164.56,2.1275]
[1730816727550,11.65431897,164.65,164.56,2.1275]
[1730816727762,11.65431897,164.63,164.52,15.43901897]
[1730816728059,2.1271,164.6,164.54,2.1277]
[1730816728256,5.28,164.62,164.54,11.65431897]
[1730816728757,5.28,164.62,164.57,2.1274]
[1730816728964,5.28,164.62,164.54,11.65431897]
[1730816729467,1.3623,164.67,164.55,18.67943551]
[1730816729663,1.3623,164.67,164.58,18.67943551]
[1730816729856,5.28,164.66,164.59,1.3105]
[1730816730361,5.28,164.66,164.65,2.1264]
[1730816730560,5.28,164.69,164.6,18.67943551]
[1730816730759,2.6031,164.73,164.6,18.67943551]
[1730816730760,1.2813,164.73,164.63,18.67943551]
[1730816730961,5.28,164.72,164.63,18.67943551]
[1730816731460,7.4056,164.72,164.63,18.67943551]
[1730816731661,1.3218,164.76,164.65,18.67943551]
[1730816731861,1.3218,164.76,164.66,2.603]
[1730816731862,5.28,164.75,164.66,2.603]
[1730816732059,119.1414,164.77,164.66,2.603]
[1730816732257,5.28,164.76,164.66,2.603]
[1730816732857,2.1255,164.73,164.66,2.603]
[1730816733057,5.28,164.76,164.66,2.603]
[1730816734459,5.28,164.76,164.68,18.67943551]
[1730816734855,5.28,164.76,164.66,2.603]
[1730816735258,2.1257,164.71,164.66,3.4368]
[1730816735460,5.28,164.7,164.66,3.4368]
[1730816736051,5.28,164.7,164.67,2.1261]
[1730816736461,5.28,164.7,164.66,1.3105]
[1730816737062,5.28,164.7,164.68,2.1259]
[1730816737262,5.28,164.7,164.66,1.3105]
[1730816737467,1.2801,164.75,164.66,1.3105]
[1730816737672,75.4414,164.77,164.67,18.67943551]
[1730816737857,5.28,164.76,164.67,18.67943551]
[1730816738661,5.28,164.76,164.68,1.1442]
[1730816738861,5.28,164.76,164.74,2.1251]
[1730816739369,75.4414,164.77,164.76,2.125]
[1730816740071,75.4414,164.77,164.7,18.67943551]
[1730816740269,75.4414,164.77,164.73,2.1253]
[1730816740574,75.4414,164.77,164.69,1.325]
[1730816741275,75.4414,164.77,164.71,2.1255]
[1730816741276,2.1252,164.75,164.71,2.1255]
[1730816741574,75.4414,164.77,164.69,1.325]
[1730816741764,77.5663,164.77,164.72,2.1254]
[1730816742169,75.4414,164.77,164.69,1.325]
[1730816743468,75.4414,164.77,164.7,18.67943551]
[1730816743769,75.4414,164.77,164.76,2.125]
[1730816744869,75.4414,164.77,164.75,2.1251]
[1730816745465,75.4414,164.77,164.76,2.125]
[1730816745660,75.4414,164.77,164.7,18.67943551]
[1730816747373,80.4414,164.77,164.74,2.1252]
[1730816747867,80.4414,164.77,164.69,1.325]
[1730816748070,80.4414,164.77,164.67,18.67943551]
[1730816748672,80.4414,164.77,164.72,2.1254]
[1730816748876,80.4414,164.77,164.67,18.67943551]
[1730816749768,75.4414,164.77,164.67,18.67943551]
[1730816749971,75.4414,164.77,164.76,2.125]
[1730816752476,74.2953,164.77,164.76,2.125]
[1730816753777,43.72,164.85,164.76,18.67943551]
[1730816753778,5.0,164.85,164.76,18.67943551]
[1730816753972,5.0,164.85,164.78,18.67943551]
[1730816754173,5.0,164.87,164.86,2.1236]
[1730816754481,7.1229,164.93,164.81,18.67943551]
[1730816754676,7.1229,164.93,164.84,18.67943551]
[1730816754873,2.1229,164.93,164.84,18.67943551]
[1730816755074,5.0,164.93,164.84,18.67943551]
[1730816755677,5.0,164.93,164.91,2.123]
[1730816755880,43.7,164.95,164.87,18.67943551]
[1730816756075,6.3043,164.99,164.94,2.1226]
[1730816756278,6.3043,164.99,164.87,18.67943551]
[1730816756779,6.3043,164.99,164.89,18.67943551]
[1730816756980,2.1222,164.98,164.89,18.67943551]
[1730816757179,6.3043,164.99,164.94,2.1226]
[1730816757880,8.4264,164.99,164.94,2.1226]
[1730816758082,6.3043,164.99,164.95,2.1225]
[1730816758274,6.3043,164.99,164.9,2.6712]
[1730816758676,5.0,164.99,164.97,2.1222]
[1730816758980,5.0,164.99,164.92,18.67943551]
[1730816759181,2.1216,165.03,164.92,18.67943551]
[1730816759382,5.0,165.02,164.92,18.67943551]
[1730816760077,5.0,165.02,164.95,18.67943551]
[1730816760481,5.0,165.02,165.0,2.1219]
[1730816760685,5.0,165.02,164.92,18.67943551]
[1730816760875,5.0,165.02,165.0,2.1219]
[1730816761072,5.0,165.02,164.92,18.67943551]
[1730816761676,18.67943551,165.06,164.99,2.1219]
[1730816761985,23.67943551,165.06,164.92,18.67943551]
[1730816762186,1.3803,165.08,164.95,18.67943551]
[1730816762479,1.3803,165.08,164.97,18.67943551]
[1730816762680,2.121,165.07,165.03,2.1215]
[1730816762881,1.3803,165.08,164.97,18.67943551]
[1730816763082,1.3803,165.08,164.95,18.67943551]
[1730816763486,5.0,165.07,164.95,18.67943551]
[1730816763686,2.1213,165.06,165.01,2.1217]
[1730816763880,5.0,165.07,164.95,18.67943551]
[1730816764080,1.3803,165.08,164.95,18.67943551]
[1730816764284,6.3803,165.08,164.95,18.67943551]
[1730816764785,2.1214,165.04,164.99,2.1219]
[1730816764985,2.1214,165.04,164.95,18.67943551]
[1730816765181,6.3803,165.08,164.95,18.67943551]
[1730816765585,6.3803,165.08,165.02,2.1216]
[1730816765787,6.3803,165.08,164.95,18.67943551]
[1730816766080,2.1214,165.04,165.0,2.1218]
[1730816766282,6.3803,165.08,165.0,2.1218]
[1730816766488,2.1213,165.05,165.01,2.1217]
[1730816766678,6.3803,165.08,164.95,18.67943551]
[1730816767081,2.1214,165.05,165.0,2.1218]
[1730816767283,6.3803,165.08,164.98,18.67943551]
[1730816767683,8.5012,165.08,164.98,18.67943551]
[1730816767885,6.3803,165.08,164.98,18.67943551]
[1730816768186,1.3803,165.08,164.98,18.67943551]
[1730816768886,2.1211,165.07,165.03,2.1214]
[1730816770488,1.3803,165.08,165.0,18.67943551]
[1730816771088,1.3803,165.08,165.05,2.1212]
[1730816771290,18.67943551,165.16,165.0,18.67943551]
[1730816771587,6.2362,165.14,165.0,18.67943551]
[1730816771778,6.2362,165.14,165.03,18.67943551]
[1730816772087,18.67943551,165.13,165.05,2.1212]
[1730816772284,18.67943551,165.1,164.97,23.55943551]
[1730816772479,2.1211,165.07,165.04,2.1214]
[1730816772783,1.3707,165.12,165.0,18.67943551]
[1730816773384,1.3707,165.12,164.98,1.3056]
[1730816773985,1.3707,165.12,165.0,18.67943551]
[1730816774307,1.3707,165.12,164.98,1.3056]
[1730816774308,1.3707,165.12,165.03,18.67943551]
[1730816774788,18.67943551,165.11,164.98,1.3056]
[1730816775182,2.121,165.08,165.03,2.1215]
[1730816775382,18.67943551,165.11,165.03,2.1215]
[1730816775586,2.121,165.07,165.03,2.1215]
[1730816775987,18.67943551,165.11,165.01,2.1217]
[1730816776196,2.1209,165.08,164.98,1.3056]
[1730816776789,2.121,165.08,165.03,2.1214]
[1730816777094,18.67943551,165.11,165.05,2.1212]
[1730816777285,2.1209,165.09,165.05,2.1212]
[1730816778084,2.1211,165.07,165.03,2.1214]
[1730816778488,11.63698249,165.11,165.0,11.63698249]
[1730816778987,1.3707,165.12,164.82,2.74262163]
[1730816779191,11.63698249,165.09,164.97,11.63698249]
[1730816779393,4.88,165.08,164.97,11.63698249]
[1730816779790,1.3944,165.07,164.97,11.63698249]
[1730816780089,2.1212,165.06,164.97,11.63698249]
[1730816780291,2.1212,165.06,164.99,11.63698249]
[1730816780493,2.1214,165.04,165.0,2.1219]
[1730816780699,6.2744,165.07,164.97,11.63698249]
[1730816781096,2.1213,165.05,165.0,2.1219]
[1730816781291,6.2744,165.07,164.97,11.63698249]
[1730816781492,2.1214,165.05,165.0,2.1219]
[1730816781686,2.1214,165.05,164.97,11.63698249]
[1730816781893,17.91138249,165.07,164.97,11.63698249]
[1730816782193,1.2754,165.06,164.97,11.63698249]
[1730816782697,2.1216,165.03,164.99,2.122]
[1730816783002,1.2754,165.06,164.97,11.63698249]
[1730816783407,2.1214,165.05,164.99,2.1219]
[1730816783597,6.1554,165.06,164.97,11.63698249]
[1730816784995,1.3944,165.07,164.99,11.63698249]
[1730816785204,1.28,165.11,165.04,11.63698249]
[1730816785491,16.51698249,165.16,165.04,11.63698249]
[1730816785701,2.1204,165.12,165.04,11.63698249]
[1730816786099,4.88,165.14,165.04,11.63698249]
[1730816786295,4.88,165.14,164.98,11.63698249]
[1730816786498,11.63698249,165.12,165.0,11.63698249]
[1730816786694,3.9345,165.11,165.0,11.63698249]
[1730816787496,2.1209,165.08,165.03,2.1214]
[1730816787697,4.88,165.1,165.0,11.63698249]
[1730816787903,2.1214,165.04,164.97,2.1222]
[1730816788106,11.63698249,165.09,164.96,11.63698249]
[1730816788606,2.1214,165.05,164.99,2.1219]
[1730816789107,2.1214,165.04,164.99,2.1219]
[1730816789313,18.62873218,165.09,164.98,2.122]
[1730816789502,18.62873218,165.09,164.95,18.62873218]
[1730816789695,2.1216,165.03,164.95,18.62873218]
[1730816789901,4.88,165.04,164.95,18.62873218]
[1730816790101,1.3563,165.03,164.92,2.6077]
[1730816790302,1.3563,165.03,164.91,18.62873218]
[1730816790303,4.0971,165.03,164.93,2.1227]
[1730816790600,4.0971,165.03,164.91,18.62873218]
[1730816791401,22.72583218,165.03,164.91,18.62873218]
[1730816791801,22.72583218,165.03,164.93,2.1227]
[1730816792011,22.72583218,165.03,164.88,19.94093218]
[1730816792310,22.72583218,165.03,164.97,0.97853]
[1730816792505,22.72583218,165.03,164.88,19.94093218]
[1730816794503,22.72583218,165.03,164.94,2.1226]
[1730816795108,22.72583218,165.03,164.92,2.1228]
[1730816795307,22.72583218,165.03,164.88,19.94093218]
[1730816795308,18.62873218,165.01,164.88,19.94093218]
[1730816796307,18.62873218,165.01,164.88,1.3122]
[1730816796908,2.1225,164.96,164.91,2.123]
[1730816797100,7.0025,164.96,164.91,2.123]
[1730816797722,4.88,164.96,164.88,1.3122]
[1730816798011,4.88,164.96,164.88,19.94093218]
[1730816798212,4.0971,165.03,164.88,19.94093218]
[1730816798511,2.1219,165.0,164.95,2.1225]
[1730816798713,6.9619,165.0,164.95,2.1225]
[1730816799409,4.84,165.0,164.96,2.1224]
[1730816800009,4.84,165.0,164.91,18.62873218]
[1730816800211,4.84,165.0,164.88,1.3122]
[1730816800714,4.84,165.0,164.91,2.123]
[1730816800908,4.84,165.0,164.86,18.62873218]
[1730816801217,2.1226,164.95,164.9,2.1231]
[1730816801410,4.84,165.0,164.86,18.62873218]
[1730816801806,2.1222,164.98,164.94,2.1227]
[1730816802005,4.84,165.0,164.94,2.1227]
[1730816802211,4.84,165.0,164.85,1.3693]
[1730816802212,4.84,165.0,164.89,18.62873218]
[1730816802409,2.1222,164.99,164.94,2.1226]
[1730816802610,4.84,165.0,164.94,2.1226]
[1730816803214,2.122,164.99,164.94,2.1226]
[1730816803510,4.84,164.99,164.94,2.1226]
[1730816803719,4.84,165.01,164.94,2.1226]
[1730816804812,4.84,165.01,164.9,1.3395]
[1730816805009,1.3563,165.03,164.92,18.62873218]
[1730816805209,4.84,165.04,164.93,1.2624]
[1730816805511,2.1215,165.03,164.93,1.2624]
[1730816805820,4.84,165.04,164.93,1.2624]
[1730816806006,4.84,165.04,164.99,2.122]
[1730816806206,2.1215,165.03,164.99,2.122]
[1730816806911,4.84,165.04,164.96,2.1224]
[1730816807417,2.1219,165.01,164.96,2.1224]
[1730816807814,4.84,165.04,164.99,2.122]
[1730816808014,2.1216,165.03,164.99,2.122]
[1730816808223,4.84,165.04,164.93,1.2624]
[1730816808612,6.9614,165.04,164.93,1.2624]
[1730816808813,2.1214,165.04,164.93,1.2624]
[1730816809020,4.84,165.04,164.99,2.1219]
[1730816809321,4.84,165.04,164.96,11.64289088]
[1730816809514,4.84,165.04,164.97,1.3931]
[1730816809714,2.7547,165.08,164.99,11.64289088]
[1730816810010,1.3592,165.08,164.99,11.64289088]
[1730816810217,1.3592,165.08,165.03,2.1214]
[1730816810411,3.4801,165.08,165.03,2.1214]
[1730816811019,2.121,165.07,165.02,2.1215]
[1730816811521,2.1212,165.06,165.01,2.1217]
[1730816811724,11.64289088,165.07,165.01,2.1217]
[1730816811921,11.64289088,165.07,165.0,1.2742]
[1730816812123,13.76389088,165.07,165.02,2.1216]
[1730816812619,11.64289088,165.07,165.0,1.2742]
[1730816812819,13.76399088,165.07,165.01,2.1216]
[1730816813028,11.64289088,165.05,164.97,1.3931]
[1730816813427,11.64289088,165.05,164.95,11.64289088]
[1730816813428,2.1217,165.02,164.95,11.64289088]
[1730816813724,4.84,165.07,164.99,11.64289088]
[1730816813927,2.1212,165.06,165.01,2.1217]
[1730816815213,2.1212,165.06,164.99,11.64289088]
[1730816815417,2.1212,165.06,165.02,2.1216]
[1730816816126,4.84,165.07,165.03,2.1214]
[1730816816326,4.84,165.07,165.0,1.3925]
[1730816816516,6.1992,165.08,165.0,1.3925]
[1730816816718,1.3592,165.08,165.0,1.3925]
[1730816816923,1.3592,165.08,165.0,2.6902]
[1730816817123,48.48,165.09,165.0,2.6902]
[1730816817422,16.48289088,165.1,165.01,11.64289088]
[1730816817815,2.1208,165.09,165.01,11.64289088]
[1730816818021,2.6835,165.14,165.01,11.64289088]
[1730816818221,2.1205,165.11,165.06,2.121]
[1730816818620,16.48289088,165.13,165.06,2.121]
[1730816818930,16.48289088,165.13,165.07,2.1209]
[1730816819229,4.84,165.12,165.01,11.64289088]
[1730816819425,4.84,165.12,165.03,11.64289088]
[1730816819729,16.48289088,165.13,165.03,11.64289088]
[1730816819919,2.1204,165.12,165.07,2.1209]
[1730816820232,16.48289088,165.13,165.03,11.64289088]
[1730816820425,16.48289088,165.13,165.0,2.6902]
[1730816820426,2.1206,165.11,165.06,2.121]
[1730816820617,2.1206,165.11,165.01,11.64289088]
[1730816820931,2.1206,165.11,165.06,2.121]
[1730816821225,2.1208,165.09,165.01,11.64289088]
[1730816821522,11.64289088,165.11,165.05,2.1212]
[1730816821722,11.64289088,165.11,165.01,11.64289088]
[1730816822124,2.1212,165.06,165.01,2.1217]
[1730816822325,11.64289088,165.08,165.0,2.6902]
[1730816822521,2.1212,165.06,165.0,2.6902]
[1730816822725,11.64289088,165.08,165.0,2.6902]
[1730816822929,11.64289088,165.11,165.0,2.6902]
[1730816823225,11.64289088,165.11,165.03,2.1215]
[1730816823624,2.121,165.08,165.03,2.1215]
[1730816823824,11.64289088,165.11,165.03,2.1215]
[1730816824329,2.121,165.08,165.03,2.1215]
[1730816824630,11.64289088,165.08,165.0,2.6902]
[1730816824828,2.1211,165.07,165.0,2.6902]
[1730816825430,13.76379088,165.08,165.0,2.6902]
[1730816825824,11.64289088,165.08,165.03,2.1214]
[1730816826026,2.1211,165.07,165.03,2.1214]
[1730816827127,2.1211,165.07,164.95,4.82]
[1730816827128,4.82,165.06,164.92,0.978]
[1730816827325,4.82,165.06,164.97,11.64289088]
[1730816827521,4.82,165.11,165.01,11.64289088]
[1730816827732,6.9405,165.11,165.04,2.1213]
[1730816827928,6.9405,165.11,165.02,2.6416]
[1730816827929,4.82,165.11,165.02,2.6416]
[1730816828130,16.46289088,165.12,165.02,2.6416]
[1730816828330,2.1209,165.09,165.04,2.1214]
[1730816829028,16.46289088,165.12,165.02,2.6416]
[1730816829225,4.82,165.12,165.04,11.64289088]
[1730816829733,4.82,165.12,165.02,2.6416]
[1730816830031,2.1205,165.11,165.06,2.121]
[1730816830226,4.82,165.12,165.02,2.6416]
[1730816830429,4.82,165.12,165.04,11.64289088]
[1730816830622,2.1206,165.1,165.05,2.1212]
[1730816830826,4.74,165.12,165.02,14.28449088]
[1730816831227,2.1206,165.11,165.05,2.1213]
[1730816831431,2.1206,165.11,165.02,14.28449088]
[1730816831629,4.74,165.12,165.02,2.6416]
[1730816831824,11.64289088,165.13,165.02,14.28449088]
[1730816832030,4.74,165.12,165.04,11.64289088]
[1730816832224,6.8605,165.12,165.06,2.121]
[1730816832433,4.74,165.12,165.04,11.64289088]
[1730816833336,2.1205,165.11,165.04,11.64289088]
[1730816833933,16.38289088,165.13,165.04,11.64289088]
[1730816834139,11.64289088,165.11,165.02,2.6416]
[1730816834339,11.64289088,165.11,165.03,2.1215]
[1730816834530,2.1209,165.08,165.02,2.6416]
[1730816834731,11.64289088,165.11,165.02,2.6416]
[1730816834925,11.64289088,165.11,165.02,1.3175]
[1730816835133,2.1209,165.08,165.02,1.3175]
[1730816835539,11.64289088,165.11,165.02,1.3175]
[1730816835732,2.1209,165.08,165.04,2.1213]
[1730816835932,16.38289088,165.13,165.02,1.3175]
[1730816836934,2.1207,165.1,165.03,11.64289088]
[1730816837334,16.38289088,165.13,165.03,11.64289088]
[1730816837532,11.64289088,165.11,165.02,1.3175]
[1730816838433,16.38289088,165.13,165.02,12.96039088]
[1730816839041,2.1207,165.1,165.02,12.96039088]
[1730816839361,11.64289088,165.13,165.02,12.96039088]
[1730816839362,4.74,165.11,165.02,12.96039088]
[1730816839537,2.1206,165.1,165.05,2.1212]
[1730816839735,4.74,165.12,165.02,12.96039088]
[1730816840241,2.1207,165.09,165.02,12.96039088]
[1730816840734,2.1207,165.09,165.04,2.1213]
[1730816841139,4.74,165.12,165.02,12.96039088]
[1730816841345,4.74,165.12,165.05,2.1212]
[1730816841540,2.1207,165.1,165.05,2.1212]
[1730816842039,11.64289088,165.11,165.0,11.64289088]
[1730816842235,2.1211,165.07,165.0,11.64289088]
[1730816842439,11.64289088,165.09,165.01,2.1217]
[1730816842833,2.121,165.07,164.98,11.64289088]
[1730816843038,2.121,165.07,165.02,2.1215]
[1730816843231,2.121,165.07,164.98,11.64289088]
[1730816843436,11.64289088,165.11,165.0,11.64289088]
[1730816844140,2.1207,165.1,165.05,2.1212]
[1730816844337,12.99969088,165.13,165.02,11.64289088]
[1730816844542,2.1205,165.11,165.06,2.1211]
[1730816845938,6.8604,165.12,165.07,2.1209]
[1730816846143,4.74,165.12,165.02,11.64289088]
[1730816846340,4.74,165.12,165.05,11.64289088]
[1730816846546,2.7267,165.14,165.1,2.1205]
[1730816846738,2.7267,165.14,165.05,11.64289088]
[1730816847248,1.4,165.19,165.07,11.64289088]
[1730816847549,4.74,165.18,165.09,11.64289088]
[1730816847739,4.74,165.17,165.09,11.64289088]
[1730816848145,4.74,165.18,165.09,11.64289088]
[1730816848449,16.38289088,165.21,165.11,11.64289088]
[1730816849145,1.3261,165.23,165.11,11.64289088]
[1730816849346,12.96899088,165.23,165.12,1.3921]
[1730816849646,12.96899088,165.23,165.12,13.03499088]
[1730816849950,11.64289088,165.2,165.1,11.64289088]
[1730816850140,1.3362,165.22,165.04,1.3921]
[1730816850141,2.1201,165.15,165.04,1.3921]
[1730816850346,2.1201,165.15,165.07,11.64289088]
[1730816850543,11.64289088,165.18,165.07,11.64289088]
[1730816850850,11.64289088,165.16,165.05,11.64289088]
[1730816851148,1.3261,165.15,165.05,11.64289088]
[1730816851342,2.1203,165.13,165.08,2.1209]
[1730816851543,2.1203,165.13,165.05,11.64289088]
[1730816851544,1.3261,165.15,165.05,11.64289088]
[1730816851942,2.1203,165.13,165.08,2.1209]
[1730816852145,2.1203,165.13,165.05,11.64289088]
[1730816852445,4.74,165.19,165.07,11.64289088]
[1730816852750,11.64289088,165.17,165.05,11.64289088]
[1730816852949,2.1203,165.13,165.08,2.1209]
[1730816853246,11.64289088,165.17,165.05,11.64289088]
[1730816853945,11.64289088,165.17,165.04,1.3921]
[1730816854141,16.38289088,165.19,165.07,11.64289088]
[1730816854546,2.1199,165.16,165.11,2.1205]
[1730816855447,4.74,165.17,165.07,11.64289088]
[1730816856347,6.8597,165.18,165.13,2.1202]
[1730816857148,2.1199,165.16,165.11,2.1204]
[1730816857349,4.74,165.18,165.08,11.64289088]
[1730816857653,4.74,165.18,165.1,11.64289088]
[1730816857848,2.1196,165.18,165.12,2.1203]
[1730816858155,16.42289088,165.19,165.1,11.64289088]
[1730816858553,16.42289088,165.19,165.14,2.1201]
[1730816858955,18.54239088,165.19,165.15,2.1199]
[1730816859252,4.78,165.19,165.1,11.64289088]
[1730816859647,4.78,165.19,165.13,2.1201]
[1730816859648,16.42289088,165.19,165.13,2.1201]
[1730816860250,2.1196,165.18,165.13,2.1201]
[1730816860647,2.1196,165.18,165.1,11.64289088]
[1730816860855,4.78,165.19,165.12,11.64289088]